[Event "27th CRO-chT Women 2018"]
[Site "Biograd"]
[Date "2018.09.09"]
[Round "2.1"]
[White "Ivekovic, Ana"]
[Black "Videnova, Iva"]
[Result "0-1"]
[ECO "A04"]
[WhiteElo "2118"]
[BlackElo "2336"]
[Annotator "NA"]
[PlyCount "94"]
[EventDate "2018.09.08"]
[EventType "team-tourn"]
[EventCountry "CRO"]
[SourceTitle "playchess.com"]
[Source "ChessBase"]
[SourceQuality "1"]
[TimeControl "40/5400+30:1800+30"]

1. Nf3 {[%emt 0:00:30]} c5 {[%emt 0:00:30]} 2. g3 {[%emt 0:00:30]} g6 {[%emt 0:00:30]} 3. Bg2 {[%emt 0:00:30]} Bg7 {[%emt 0:00:00]} 4. O-O {[%emt 0:02:30]} Nc6 {[%emt 0:00:00]} 5. c3 {[%emt 0:01:30]} e5 {[%emt 0:00:30]} 6. e4 {[%emt 0:04:30]} Nge7 {[%emt 0:01:30]} 7. Re1 {[%emt 0:03:30]} O-O {[%emt 0:00:30]} 8. Na3 {[%emt 0:00:30]} h6 {[%emt 0:01:30]} 9. d3 {[%emt 0:07:30]} d6 {[%emt 0:00:30]} 10. Rb1 {[%emt 0:01:30]} Be6 {[%emt 0:02:30]} 11. b3 {[%emt 0:02:30]} d5 {[%emt 0:02:30]} 12. Qe2 {[%emt 0:05:30]} Qd7 {[%emt 0:03:30]} 13. Bb2 {[%emt 0:03:30]} d4 {[%emt 0:06:30]} 14. cxd4 {[%emt 0:01:30]} cxd4 {[%emt 0:00:30]} 15. Qd2 {[%emt 0:05:30]} a5 {[%emt 0:00:30]} 16. Nc4 {[%emt 0:08:30]} Ra6 {[%emt 0:06:30]} 17. Rec1 {[%emt 0:02:30]} b5 {[%emt 0:05:30]} 18. Na3 {[%emt 0:01:30]} Rb8 {[%emt 0:01:30]} 19. Rc5 {[%emt 0:05:30]} b4 {[%emt 0:01:30]} 20. Nc4 {[%emt 0:08:30]} Qa7 {[%emt 0:01:30]} 21. Rxe5 {[%emt 0:04:30]} Bxc4 {[%emt 0:04:30]} 22. Rxe7 {[%emt 0:00:30]} Qxe7 {[%emt 0:00:30]} 23. bxc4 {[%emt 0:04:30]} a4 {[%emt 0:00:30]} 24. Qf4 {[%emt 0:00:30]} g5 {[%emt 0:01:30]} 25. Qf5 {[%emt 0:02:30]} Qe6 {[%emt 0:09:30]} 26. Qxe6 {[%emt 0:06:05]} fxe6 {[%emt 0:00:00]} 27. Nd2 {[%emt 0:00:42]} e5 {[%emt 0:02:00]} 28. Bf3 {[%emt 0:03:19]} Bf8 {[%emt 0:02:30]} 29. Bg4 {[%emt 0:07:01]} Kf7 {[%emt 0:00:30]} 30. Bd7 {[%emt 0:00:53]} Ke7 {[%emt 0:04:30]} 31. Bxc6 {[%emt 0:00:42]} Rxc6 {[%emt 0:00:00]} 32. Kf1 {[%emt 0:00:47]} g4 {[%emt 0:02:00]} 33. Ke2 {[%emt 0:00:55]} h5 {[%emt 0:00:30]} 34. f4 {[%emt 0:03:02]} Bg7 {[%emt 0:03:30]} 35. Rf1 {[%emt 0:01:58]} Rf8 {[%emt 0:01:30]} 36. f5 {[%emt 0:01:07]} Kf7 {[%emt 0:02:30]} 37. Rh1 {[%emt 0:00:13]} h4 {[%emt 0:01:30]} 38. gxh4 {[%emt 0:00:25]} Rh8 {[%emt 0:00:30]} 39. Rg1 {[%emt 0:00:40]} Rxh4 {[%emt 0:00:30]} 40. Rg2 {[%emt 0:00:00]} Bh6 {[%emt 0:00:00]} 41. Nf1 {[%emt 0:05:11]} a3 {[%emt 0:04:00]} 42. Ba1 {[%emt 0:00:30]} Bf4 {[%emt 0:00:30]} 43. Kd1 {[%emt 0:01:30]} Rch6 {[%emt 0:03:30]} 44. Kc2 {[%emt 0:05:30]} Bxh2 {[%emt 0:00:30]} 45. Kb3 {[%emt 0:00:30]} Bf4 {[%emt 0:00:00]} 46. Kxb4 {[%emt 0:06:03]} Rb6+ {[%emt 0:00:00]} 47. Kc5 {[%emt 0:01:25]} Rb1 {[%emt 0:00:30]} 0-1

[Event "27th CRO-chT Women 2018"]
[Site "Biograd"]
[Date "2018.09.09"]
[Round "2.2"]
[White "Deur Saric, Zrinka"]
[Black "Spiranec, Noemi"]
[Result "1/2-1/2"]
[ECO "B42"]
[WhiteElo "2115"]
[BlackElo "2035"]
[Annotator "NA"]
[PlyCount "79"]
[EventDate "2018.09.08"]
[EventType "team-tourn"]
[EventCountry "CRO"]
[SourceTitle "playchess.com"]
[Source "ChessBase"]
[SourceQuality "1"]
[TimeControl "40/5400+30:1800+30"]

1. e4 {[%emt 0:02:30]} c5 {[%emt 0:00:30]} 2. Nf3 {[%emt 0:00:30]} e6 {[%emt 0:00:00]} 3. d4 {[%emt 0:00:00]} cxd4 {[%emt 0:00:00]} 4. Nxd4 {[%emt 0:00:00]} a6 {[%emt 0:00:00]} 5. Bd3 {[%emt 0:00:30]} Bc5 {[%emt 0:00:00]} 6. Nb3 {[%emt 0:00:30]} Ba7 {[%emt 0:00:30]} 7. Qe2 {[%emt 0:00:30]} Nc6 {[%emt 0:00:00]} 8. Nc3 {[%emt 0:01:30]} d6 {[%emt 0:00:00]} 9. Be3 {[%emt 0:00:30]} Nge7 {[%emt 0:00:30]} 10. O-O {[%emt 0:03:30]} O-O {[%emt 0:04:30]} 11. Rad1 {[%emt 0:04:30]} Qc7 {[%emt 0:10:30]} 12. Bxa7 {[%emt 0:09:30]} Rxa7 {[%emt 0:00:30]} 13. a3 {[%emt 0:01:30]} Rd8 {[%emt 0:14:30]} 14. f4 {[%emt 0:05:30]} b5 {[%emt 0:09:30]} 15. Kh1 {[%emt 0:03:30]} Qb8 {[%emt 0:03:30]} 16. f5 {[%emt 0:05:30]} f6 {[%emt 0:06:30]} 17. fxe6 {[%emt 0:06:30]} Bxe6 {[%emt 0:00:30]} 18. Nd5 {[%emt 0:03:30]} Ne5 {[%emt 0:03:30]} 19. h3 {[%emt 0:09:30]} N7c6 {[%emt 0:09:30]} 20. c3 {[%emt 0:01:30]} Re8 {[%emt 0:06:30]} 21. Bb1 {[%emt 0:05:30]} Ne7 {[%emt 0:03:30]} 22. Nd4 {[%emt 0:04:30]} Nxd5 {[%emt 0:01:30]} 23. Nxe6 {[%emt 0:00:30]} Rxe6 {[%emt 0:01:30]} 24. exd5 {[%emt 0:05:30]} Re8 {[%emt 0:00:30]} 25. Qe4 {[%emt 0:00:30]} Ng6 {[%emt 0:04:30]} 26. Qg4 {[%emt 0:01:30]} Ne5 {[%emt 0:03:45]} 27. Qf5 {[%emt 0:01:30]} Ng6 {[%emt 0:01:12]} 28. Qg4 {[%emt 0:07:25]} Ne5 {[%emt 0:02:14]} 29. Qg3 {[%emt 0:03:20]} Qd8 {[%emt 0:01:52]} 30. Rde1 {[%emt 0:03:54]} Rc7 {[%emt 0:02:03]} 31. Qh4 {[%emt 0:00:46]} h6 {[%emt 0:00:56]} 32. Qh5 {[%emt 0:01:10]} Rf8 {[%emt 0:04:02]} 33. Bf5 {[%emt 0:04:49]} Qe8 {[%emt 0:02:05]} 34. Qh4 {[%emt 0:01:32]} g6 {[%emt 0:01:22]} 35. Bb1 {[%emt 0:01:04]} Kg7 {[%emt 0:00:14]} 36. Re2 {[%emt 0:01:01]} Rc4 {[%emt 0:02:26]} 37. Qf2 {[%emt 0:00:25]} Qf7 {[%emt 0:01:08]} 38. Ba2 {[%emt 0:01:17]} Rc5 {[%emt 0:01:15]} 39. Qd4 {[%emt 0:00:41]} Qa7 {[%emt 0:01:36]} 40. Ref2 {[%emt 0:00:00]} 1/2-1/2

[Event "27th CRO-chT Women 2018"]
[Site "Biograd"]
[Date "2018.09.09"]
[Round "2.4"]
[White "Vujnovic, Patricija"]
[Black "Turk, Vesna"]
[Result "1-0"]
[ECO "D02"]
[WhiteElo "2056"]
[BlackElo "1728"]
[Annotator "NA"]
[PlyCount "95"]
[EventDate "2018.09.08"]
[EventType "team-tourn"]
[EventCountry "CRO"]
[SourceTitle "playchess.com"]
[Source "ChessBase"]
[SourceQuality "1"]
[TimeControl "40/5400+30:1800+30"]

1. d4 {[%emt 0:00:30]} d5 {[%emt 0:00:30]} 2. Bf4 {[%emt 0:00:30]} Nf6 {[%emt 0:00:30]} 3. e3 {[%emt 0:00:00]} Bf5 {[%emt 0:00:30]} 4. c4 {[%emt 0:00:00]} c6 {[%emt 0:01:30]} 5. Nc3 {[%emt 0:01:30]} e6 {[%emt 0:01:30]} 6. Qb3 {[%emt 0:00:30]} Qb6 {[%emt 0:06:30]} 7. c5 {[%emt 0:00:30]} Qxb3 {[%emt 0:02:30]} 8. axb3 {[%emt 0:00:30]} Nbd7 {[%emt 0:00:30]} 9. b4 {[%emt 0:00:30]} Be7 {[%emt 0:01:30]} 10. Nf3 {[%emt 0:06:30]} O-O {[%emt 0:00:30]} 11. h3 {[%emt 0:01:30]} h6 {[%emt 0:02:30]} 12. b5 {[%emt 0:04:30]} a5 {[%emt 0:03:30]} 13. bxa6 {[%emt 0:08:30]} bxa6 {[%emt 0:07:30]} 14. Be2 {[%emt 0:12:30]} a5 {[%emt 0:00:30]} 15. O-O {[%emt 0:00:30]} Ne4 {[%emt 0:03:30]} 16. Ra2 {[%emt 0:03:30]} Nxc3 {[%emt 0:01:30]} 17. bxc3 {[%emt 0:00:00]} Ra7 {[%emt 0:00:30]} 18. Rfa1 {[%emt 0:00:00]} Rfa8 {[%emt 0:01:30]} 19. Rb2 {[%emt 0:05:30]} f6 {[%emt 0:01:30]} 20. g4 {[%emt 0:00:30]} Bh7 {[%emt 0:00:30]} 21. Bg3 {[%emt 0:02:30]} a4 {[%emt 0:04:30]} 22. Ra3 {[%emt 0:01:30]} e5 {[%emt 0:01:30]} 23. Ne1 {[%emt 0:06:30]} Rb8 {[%emt 0:04:30]} 24. Rxb8+ {[%emt 0:03:30]} Nxb8 {[%emt 0:03:30]} 25. Bd3 {[%emt 0:00:00]} Bxd3 {[%emt 0:00:30]} 26. Nxd3 {[%emt 0:00:00]} Nd7 {[%emt 0:02:30]} 27. Nb4 {[%emt 0:00:30]} Nb8 {[%emt 0:12:30]} 28. f4 {[%emt 0:02:30]} exd4 {[%emt 0:02:30]} 29. exd4 {[%emt 0:01:30]} f5 {[%emt 0:00:30]} 30. Kg2 {[%emt 0:02:30]} Kf7 {[%emt 0:00:30]} 31. Nd3 {[%emt 0:02:30]} Nd7 {[%emt 0:00:30]} 32. gxf5 {[%emt 0:00:30]} Bf8 {[%emt 0:08:30]} 33. Ne5+ {[%emt 0:06:30]} Nxe5 {[%emt 0:00:30]} 34. fxe5 {[%emt 0:00:00]} Ke8 {[%emt 0:00:30]} 35. Kf3 {[%emt 0:02:00]} Be7 {[%emt 0:00:30]} 36. Bf4 {[%emt 0:04:30]} Bh4 {[%emt 0:01:30]} 37. Kg4 {[%emt 0:01:30]} Be1 {[%emt 0:07:02]} 38. e6 {[%emt 0:03:23]} Ke7 {[%emt 0:03:52]} 39. Bb8 {[%emt 0:00:14]} Ra8 {[%emt 0:01:08]} 40. Bd6+ {[%emt 0:00:00]} Ke8 {[%emt 0:00:00]} 41. Kh5 {[%emt 0:07:23]} Bd2 {[%emt 0:01:28]} 42. Kg6 {[%emt 0:00:30]} Bc1 {[%emt 0:01:30]} 43. Ra2 {[%emt 0:37:20]} a3 {[%emt 0:01:30]} 44. Kxg7 {[%emt 0:00:18]} Ra7+ {[%emt 0:00:30]} 45. e7 {[%emt 0:01:03]} Bg5 {[%emt 0:28:38]} 46. f6 {[%emt 0:00:17]} Kd7 {[%emt 0:00:43]} 47. f7 {[%emt 0:02:08]} Bxe7 {[%emt 0:02:30]} 48. Bxe7 {[%emt 0:00:04]} 1-0

[Event "27th CRO-chT Women 2018"]
[Site "Biograd"]
[Date "2018.09.09"]
[Round "2.5"]
[White "Krivec, Jana"]
[Black "Lakos, Nikoletta"]
[Result "1/2-1/2"]
[ECO "B07"]
[WhiteElo "2185"]
[BlackElo "2258"]
[Annotator "NA"]
[PlyCount "39"]
[EventDate "2018.09.08"]
[EventType "team-tourn"]
[EventCountry "CRO"]
[SourceTitle "playchess.com"]
[Source "ChessBase"]
[SourceQuality "1"]
[TimeControl "40/5400+30:1800+30"]

1. e4 {[%emt 0:00:30]} d6 {[%emt 0:00:30]} 2. d4 {[%emt 0:00:30]} Nf6 {[%emt 0:00:30]} 3. Nc3 {[%emt 0:00:00]} Nbd7 {[%emt 0:00:00]} 4. Nge2 {[%emt 0:01:00]} e5 {[%emt 0:00:00]} 5. g3 {[%emt 0:00:30]} c6 {[%emt 0:01:30]} 6. Bg2 {[%emt 0:00:30]} b5 {[%emt 0:04:30]} 7. O-O {[%emt 0:10:30]} Be7 {[%emt 0:06:30]} 8. h3 {[%emt 0:04:30]} O-O {[%emt 0:04:30]} 9. g4 {[%emt 0:03:30]} b4 {[%emt 0:27:30]} 10. Nb1 {[%emt 0:00:30]} d5 {[%emt 0:09:30]} 11. exd5 {[%emt 0:07:30]} Nxd5 {[%emt 0:00:30]} 12. c4 {[%emt 0:01:30]} bxc3 {[%emt 0:00:30]} 13. Nbxc3 {[%emt 0:00:00]} Nxc3 {[%emt 0:02:30]} 14. bxc3 {[%emt 0:03:00]} Ba6 {[%emt 0:11:30]} 15. Bxc6 {[%emt 0:07:30]} Rc8 {[%emt 0:00:30]} 16. Bg2 {[%emt 0:00:30]} exd4 {[%emt 0:12:11]} 17. cxd4 {[%emt 0:01:30]} Nb6 {[%emt 0:04:40]} 18. Re1 {[%emt 0:03:30]} Bb4 {[%emt 0:03:25]} 19. Bd2 {[%emt 0:00:30]} Bxe2 {[%emt 0:00:14]} 20. Rxe2 {[%emt 0:01:30]} 1/2-1/2

[Event "27th CRO-chT Women 2018"]
[Site "Biograd"]
[Date "2018.09.09"]
[Round "2.7"]
[White "Starcevic, Andrea"]
[Black "Sambolec, Andreja"]
[Result "1-0"]
[ECO "A21"]
[WhiteElo "1893"]
[BlackElo "1864"]
[Annotator "NA"]
[PlyCount "79"]
[EventDate "2018.09.08"]
[EventType "team-tourn"]
[EventCountry "CRO"]
[SourceTitle "playchess.com"]
[Source "ChessBase"]
[SourceQuality "1"]
[TimeControl "40/5400+30:1800+30"]

1. c4 {[%emt 0:01:30]} f5 {[%emt 0:01:30]} 2. Nc3 {[%emt 0:00:00]} Nf6 {[%emt 0:00:30]} 3. g3 {[%emt 0:00:00]} g6 {[%emt 0:00:30]} 4. Bg2 {[%emt 0:01:30]} Bg7 {[%emt 0:00:30]} 5. e3 {[%emt 0:00:30]} O-O {[%emt 0:05:30]} 6. Nge2 {[%emt 0:01:30]} e5 {[%emt 0:02:30]} 7. d3 {[%emt 0:04:30]} c6 {[%emt 0:05:30]} 8. O-O {[%emt 0:04:30]} Na6 {[%emt 0:08:30]} 9. Rb1 {[%emt 0:03:30]} d5 {[%emt 0:08:30]} 10. cxd5 {[%emt 0:14:30]} cxd5 {[%emt 0:00:30]} 11. b4 {[%emt 0:05:30]} Be6 {[%emt 0:04:30]} 12. b5 {[%emt 0:12:30]} Nc7 {[%emt 0:05:30]} 13. d4 {[%emt 0:06:30]} Ne4 {[%emt 0:08:30]} 14. Qd3 {[%emt 0:09:30]} Qd7 {[%emt 0:05:30]} 15. a4 {[%emt 0:05:30]} Rac8 {[%emt 0:07:30]} 16. Ba3 {[%emt 0:01:30]} Rf7 {[%emt 0:01:30]} 17. Rfc1 {[%emt 0:01:30]} Ne8 {[%emt 0:05:30]} 18. Bb2 {[%emt 0:06:10]} N8d6 {[%emt 0:06:30]} 19. dxe5 {[%emt 0:04:37]} Bxe5 {[%emt 0:03:29]} 20. Nd4 {[%emt 0:09:20]} Nc4 {[%emt 0:04:22]} 21. Ba1 {[%emt 0:01:08]} Rd8 {[%emt 0:04:08]} 22. Nxe6 {[%emt 0:01:47]} Qxe6 {[%emt 0:00:18]} 23. Ne2 {[%emt 0:00:25]} Rfd7 {[%emt 0:01:39]} 24. Bxe5 {[%emt 0:01:30]} Qxe5 {[%emt 0:00:33]} 25. Nd4 {[%emt 0:00:14]} Nc5 {[%emt 0:01:54]} 26. Bxd5+ {[%emt 0:01:21]} Qxd5 {[%emt 0:02:15]} 27. Qxc4 {[%emt 0:00:05]} Qxc4 {[%emt 0:00:11]} 28. Rxc4 {[%emt 0:00:03]} b6 {[%emt 0:00:08]} 29. Rbc1 {[%emt 0:00:57]} Nd3 {[%emt 0:02:18]} 30. R1c3 {[%emt 0:00:40]} Nc5 {[%emt 0:01:08]} 31. Kg2 {[%emt 0:00:19]} Kg7 {[%emt 0:00:44]} 32. Rxc5 {[%emt 0:00:33]} Rxd4 {[%emt 0:01:24]} 33. exd4 {[%emt 0:00:11]} bxc5 {[%emt 0:00:08]} 34. dxc5 {[%emt 0:00:05]} Kf7 {[%emt 0:00:18]} 35. c6 {[%emt 0:00:48]} Rc8 {[%emt 0:00:26]} 36. Rd3 {[%emt 0:00:14]} Rc7 {[%emt 0:00:18]} 37. Kf3 {[%emt 0:01:28]} Ke6 {[%emt 0:00:06]} 38. Ke3 {[%emt 0:00:30]} a6 {[%emt 0:00:56]} 39. Kd4 {[%emt 0:00:26]} Kd6 {[%emt 0:01:14]} 40. Kc4+ {[%emt 0:00:00]} 1-0

[Event "27th CRO-chT Women 2018"]
[Site "Biograd"]
[Date "2018.09.09"]
[Round "2.9"]
[White "Rozman, Monika"]
[Black "Nikolova, Adriana"]
[Result "1-0"]
[ECO "B56"]
[WhiteElo "2037"]
[BlackElo "2281"]
[Annotator "NA"]
[PlyCount "157"]
[EventDate "2018.09.08"]
[EventType "team-tourn"]
[EventCountry "CRO"]
[SourceTitle "playchess.com"]
[Source "ChessBase"]
[SourceQuality "1"]
[TimeControl "40/5400+30:1800+30"]

1. e4 {[%emt 0:00:30]} c5 {[%emt 0:01:30]} 2. Nf3 {[%emt 0:00:00]} Nc6 {[%emt 0:00:30]} 3. d4 {[%emt 0:00:00]} cxd4 {[%emt 0:00:00]} 4. Nxd4 {[%emt 0:00:30]} Nf6 {[%emt 0:00:00]} 5. Nc3 {[%emt 0:00:00]} d6 {[%emt 0:00:30]} 6. Be3 {[%emt 0:00:00]} e5 {[%emt 0:00:30]} 7. Nf3 {[%emt 0:00:30]} Be6 {[%emt 0:02:30]} 8. Bb5 {[%emt 0:09:30]} Be7 {[%emt 0:01:30]} 9. O-O {[%emt 0:01:30]} O-O {[%emt 0:01:30]} 10. Ba4 {[%emt 0:03:30]} Na5 {[%emt 0:02:30]} 11. Bb3 {[%emt 0:05:30]} Nxb3 {[%emt 0:02:30]} 12. axb3 {[%emt 0:00:30]} a6 {[%emt 0:00:30]} 13. Bg5 {[%emt 0:01:30]} Rc8 {[%emt 0:03:30]} 14. Bxf6 {[%emt 0:03:30]} Bxf6 {[%emt 0:00:30]} 15. Qd3 {[%emt 0:01:30]} Re8 {[%emt 0:04:30]} 16. Rfd1 {[%emt 0:02:30]} Rc6 {[%emt 0:00:30]} 17. Nd2 {[%emt 0:07:30]} Qc8 {[%emt 0:13:30]} 18. Nf1 {[%emt 0:22:30]} Bg5 {[%emt 0:03:30]} 19. Ne3 {[%emt 0:02:30]} Bxe3 {[%emt 0:01:30]} 20. fxe3 {[%emt 0:03:30]} Bg4 {[%emt 0:06:30]} 21. Rd2 {[%emt 0:00:30]} Bh5 {[%emt 0:00:30]} 22. Rf2 {[%emt 0:02:30]} Bg6 {[%emt 0:00:30]} 23. b4 {[%emt 0:04:30]} b5 {[%emt 0:02:30]} 24. Raf1 {[%emt 0:02:30]} Qe6 {[%emt 0:10:30]} 25. Ra1 {[%emt 0:02:30]} Qc8 {[%emt 0:03:30]} 26. Raf1 {[%emt 0:01:30]} Re6 {[%emt 0:00:30]} 27. Nd5 {[%emt 0:06:27]} h6 {[%emt 0:00:30]} 28. b3 {[%emt 0:01:30]} Re8 {[%emt 0:00:30]} 29. h3 {[%emt 0:02:34]} Qd8 {[%emt 0:02:30]} 30. g3 {[%emt 0:00:07]} Qd7 {[%emt 0:09:30]} 31. Kh2 {[%emt 0:00:27]} Kh8 {[%emt 0:03:30]} 32. Ra1 {[%emt 0:01:49]} Qc8 {[%emt 0:06:59]} 33. Rd1 {[%emt 0:06:46]} f5 {[%emt 0:03:04]} 34. exf5 {[%emt 0:00:53]} e4 {[%emt 0:00:05]} 35. Qf1 {[%emt 0:00:23]} Bf7 {[%emt 0:00:39]} 36. c4 {[%emt 0:01:47]} bxc4 {[%emt 0:05:23]} 37. bxc4 {[%emt 0:00:06]} Rxc4 {[%emt 0:01:00]} 38. Nb6 {[%emt 0:00:17]} Qc6 {[%emt 0:02:01]} 39. Nxc4 {[%emt 0:00:08]} Bxc4 {[%emt 0:00:04]} 40. Qe1 {[%emt 0:00:00]} d5 {[%emt 0:00:00]} 41. Qc3 {[%emt 0:04:16]} Rf8 {[%emt 0:00:45]} 42. Ra1 {[%emt 0:06:30]} Rf6 {[%emt 0:02:30]} 43. Ra5 {[%emt 0:01:30]} Qd7 {[%emt 0:02:30]} 44. Qe5 {[%emt 0:01:30]} Bb5 {[%emt 0:03:30]} 45. g4 {[%emt 0:00:30]} Qa7 {[%emt 0:05:30]} 46. Ra3 {[%emt 0:03:30]} Bc4 {[%emt 0:03:30]} 47. Rc2 {[%emt 0:04:35]} Qb6 {[%emt 0:01:30]} 48. b5 {[%emt 0:04:09]} a5 {[%emt 0:09:02]} 49. h4 {[%emt 0:01:18]} Rf8 {[%emt 0:04:21]} 50. g5 {[%emt 0:00:49]} h5 {[%emt 0:01:33]} 51. f6 {[%emt 0:01:56]} g6 {[%emt 0:02:57]} 52. Qe7 {[%emt 0:02:15]} Rg8 {[%emt 0:01:26]} 53. f7 {[%emt 0:02:31]} Qb8+ {[%emt 0:00:00]} 54. Kh1 {[%emt 0:00:52]} Rf8 {[%emt 0:00:06]} 55. Rxa5 {[%emt 0:00:56]} Qc8 {[%emt 0:01:38]} 56. Qf6+ {[%emt 0:00:51]} Kh7 {[%emt 0:00:03]} 57. Ra6 {[%emt 0:00:16]} Qh3+ {[%emt 0:01:09]} 58. Rh2 {[%emt 0:00:09]} Qf1+ {[%emt 0:04:27]} 59. Qxf1 {[%emt 0:00:15]} Bxf1 {[%emt 0:00:02]} 60. Rf2 {[%emt 0:01:20]} Bxb5 {[%emt 0:00:01]} 61. Rd6 {[%emt 0:00:34]} Kg7 {[%emt 0:01:37]} 62. Rxd5 {[%emt 0:00:54]} Bc4 {[%emt 0:00:30]} 63. Rd6 {[%emt 0:01:25]} Bd3 {[%emt 0:00:35]} 64. Kg2 {[%emt 0:01:15]} Rxf7 {[%emt 0:00:00]} 65. Rxf7+ {[%emt 0:00:00]} Kxf7 {[%emt 0:00:00]} 66. Rf6+ {[%emt 0:00:00]} Kg7 {[%emt 0:00:00]} 67. Kg3 {[%emt 0:00:00]} Bc2 {[%emt 0:00:00]} 68. Kf4 {[%emt 0:00:00]} Bb1 {[%emt 0:00:40]} 69. Ke5 {[%emt 0:00:00]} Bc2 {[%emt 0:00:41]} 70. Rf4 {[%emt 0:00:00]} Bb1 {[%emt 0:00:42]} 71. Kd6 {[%emt 0:00:00]} Bd3 {[%emt 0:00:40]} 72. Ke7 {[%emt 0:00:16]} Bc2 {[%emt 0:00:42]} 73. Rf7+ {[%emt 0:00:30]} Kg8 {[%emt 0:00:41]} 74. Kf6 {[%emt 0:00:30]} Ba4 {[%emt 0:00:07]} 75. Ra7 {[%emt 0:00:39]} Bc6 {[%emt 0:00:30]} 76. Rc7 {[%emt 0:00:18]} Bd5 {[%emt 0:00:24]} 77. Kxg6 {[%emt 0:00:15]} Kh8 {[%emt 0:00:18]} 78. Rc8+ {[%emt 0:01:18]} Bg8 {[%emt 0:00:07]} 79. Rxg8+ {[%emt 0:00:03]} 1-0

[Event "27th CRO-chT Women 2018"]
[Site "Biograd"]
[Date "2018.09.09"]
[Round "2.11"]
[White "Ljikar, Tamara"]
[Black "Bogdanic, Katarina"]
[Result "0-1"]
[ECO "B26"]
[WhiteElo "1920"]
[BlackElo "1921"]
[Annotator "NA"]
[PlyCount "84"]
[EventDate "2018.09.08"]
[EventType "team-tourn"]
[EventCountry "CRO"]
[SourceTitle "playchess.com"]
[Source "ChessBase"]
[SourceQuality "1"]
[TimeControl "40/5400+30:1800+30"]

1. e4 {[%emt 0:00:30]} c5 {[%emt 0:00:30]} 2. Nc3 {[%emt 0:00:00]} Nc6 {[%emt 0:00:00]} 3. g3 {[%emt 0:00:00]} g6 {[%emt 0:00:00]} 4. Bg2 {[%emt 0:00:30]} Bg7 {[%emt 0:00:30]} 5. d3 {[%emt 0:00:30]} d6 {[%emt 0:00:30]} 6. Be3 {[%emt 0:00:30]} Nf6 {[%emt 0:00:30]} 7. h3 {[%emt 0:00:30]} Rb8 {[%emt 0:02:30]} 8. a4 {[%emt 0:01:30]} a6 {[%emt 0:00:30]} 9. f4 {[%emt 0:00:30]} O-O {[%emt 0:00:30]} 10. Nge2 {[%emt 0:03:30]} Qc7 {[%emt 0:02:30]} 11. O-O {[%emt 0:08:30]} b5 {[%emt 0:01:30]} 12. axb5 {[%emt 0:00:30]} axb5 {[%emt 0:00:00]} 13. Qd2 {[%emt 0:00:30]} b4 {[%emt 0:01:00]} 14. Nd1 {[%emt 0:00:30]} Bb7 {[%emt 0:01:30]} 15. e5 {[%emt 0:09:30]} Nd7 {[%emt 0:05:30]} 16. exd6 {[%emt 0:01:30]} Qxd6 {[%emt 0:04:30]} 17. f5 {[%emt 0:04:30]} Nd4 {[%emt 0:11:30]} 18. Bf4 {[%emt 0:11:30]} Be5 {[%emt 0:02:30]} 19. fxg6 {[%emt 0:04:30]} fxg6 {[%emt 0:01:30]} 20. Ne3 {[%emt 0:11:30]} Bxg2 {[%emt 0:07:30]} 21. Nxg2 {[%emt 0:03:30]} Bxf4 {[%emt 0:01:30]} 22. gxf4 {[%emt 0:06:30]} e5 {[%emt 0:01:30]} 23. Ra7 {[%emt 0:09:30]} exf4 {[%emt 0:01:30]} 24. Nxd4 {[%emt 0:02:57]} Qxd4+ {[%emt 0:01:30]} 25. Qf2 {[%emt 0:00:05]} Qd6 {[%emt 0:09:30]} 26. Nxf4 {[%emt 0:03:09]} Rf7 {[%emt 0:00:30]} 27. Rxd7 {[%emt 0:07:50]} Qxd7 {[%emt 0:01:30]} 28. Qxc5 {[%emt 0:01:35]} Rc8 {[%emt 0:06:30]} 29. Qxb4 {[%emt 0:01:23]} Rxc2 {[%emt 0:00:00]} 30. Qb3 {[%emt 0:01:15]} Qd4+ {[%emt 0:01:00]} 31. Kh1 {[%emt 0:00:10]} Qxb2 {[%emt 0:02:30]} 32. Qd5 {[%emt 0:01:55]} Qb7 {[%emt 0:04:30]} 33. Qxb7 {[%emt 0:00:25]} Rxb7 {[%emt 0:00:30]} 34. Ne6 {[%emt 0:00:15]} Rf7 {[%emt 0:00:30]} 35. Rxf7 {[%emt 0:01:45]} Kxf7 {[%emt 0:00:00]} 36. Ng5+ {[%emt 0:00:03]} Kg7 {[%emt 0:00:00]} 37. d4 {[%emt 0:00:56]} Rd2 {[%emt 0:00:30]} 38. Nf3 {[%emt 0:00:13]} Rf2 {[%emt 0:01:30]} 39. Ng5 {[%emt 0:02:07]} Rf5 {[%emt 0:01:30]} 40. Ne6+ {[%emt 0:00:00]} Kf7 {[%emt 0:00:00]} 41. Nc5 {[%emt 0:13:57]} Rf4 {[%emt 0:01:00]} 42. Nb3 {[%emt 0:00:30]} Rf3 {[%emt 0:00:30]} 0-1

[Event "27th CRO-chT Women 2018"]
[Site "Biograd"]
[Date "2018.09.09"]
[Round "3.1"]
[White "Kejzar, Petra"]
[Black "Ivekovic, Ana"]
[Result "1/2-1/2"]
[ECO "C84"]
[WhiteElo "2067"]
[BlackElo "2118"]
[Annotator "NA RC"]
[PlyCount "61"]
[EventDate "2018.09.08"]
[EventType "team-tourn"]
[EventCountry "CRO"]
[SourceTitle "playchess.com"]
[Source "ChessBase"]
[SourceQuality "1"]
[TimeControl "40/5400+30:1800+30"]

1. e4 {[%emt 0:00:30]} e5 {[%emt 0:00:30]} 2. Nf3 {[%emt 0:00:00]} Nc6 {[%emt 0:00:00]} 3. Bb5 {[%emt 0:00:00]} a6 {[%emt 0:00:00]} 4. Ba4 {[%emt 0:00:00]} Nf6 {[%emt 0:01:30]} 5. d3 {[%emt 0:00:00]} b5 {[%emt 0:00:30]} 6. Bb3 {[%emt 0:00:30]} Be7 {[%emt 0:00:30]} 7. O-O {[%emt 0:00:00]} d6 {[%emt 0:00:30]} 8. a4 {[%emt 0:00:00]} Rb8 {[%emt 0:02:30] C84: Closed Ruy Lopez: Unusual White 6th moves} (8... b4 9. a5 O-O 10. Nbd2 h6 11. Re1 Rb8 12. h3 Be6 13. Ba4 Nxa5 14. d4 c5 15. dxe5 dxe5 16. Nxe5 c4 17. Qe2 Rc8 18. Ndf3 {½-½ (25) Vitiugov,N (2730)-Tomashevsky,E (2702) Satka 2018}) 9. axb5 {[%emt 0:00:00]} axb5 {[%emt 0:00:30]} 10. c3 {[%emt 0:03:00]} O-O {[%emt 0:02:30]} 11. Re1 {[%emt 0:00:30]} Be6 {[%emt 0:10:30]} 12. Bc2 {[%emt 0:02:30]} h6 $146 {[%emt 0:06:30]} ({Predecessor:} 12... b4 13. Nbd2 Ra8 14. Rxa8 Qxa8 15. Nf1 Rb8 16. d4 exd4 17. cxd4 b3 18. Bb1 d5 {½-½ (56) Sanchez Almeyra,J (2435)-Palma de Haro,M (2210) Mar del Plata 1994}) 13. Nbd2 {[%emt 0:02:30]} Re8 {[%emt 0:04:30]} 14. h3 {[%emt 0:08:30]} Bf8 {[%emt 0:05:30]} 15. d4 {[%emt 0:05:30]} Bd7 {[%emt 0:05:30]} 16. d5 {[%emt 0:01:30]} Ne7 {[%emt 0:01:30]} 17. Nf1 {[%emt 0:01:30]} Ng6 {[%emt 0:02:30]} 18. g4 {[%emt 0:01:30]} h5 {[%emt 0:14:30]} 19. g5 {[%emt 0:02:30]} Nh7 {[%emt 0:02:30]} 20. Kh2 {[%emt 0:09:30]} Be7 {[%emt 0:03:30]} 21. Ng3 {[%emt 0:04:30]} Nxg5 {[%emt 0:06:30]} 22. Nxg5 {[%emt 0:05:30]} (22. Nf5 $17 Nxf3+ 23. Qxf3) 22... Bxg5 {[%emt 0:00:30]} 23. Nxh5 {[%emt 0:06:30]} Bxc1 {[%emt 0:04:30]} (23... Bf4+ $142 24. Nxf4 exf4) 24. Rxc1 {[%emt 0:00:30]} Qh4 {[%emt 0:08:09]} 25. Qf3 {[%emt 0:00:00]} Rf8 {[%emt 0:11:39]} 26. Rg1 {[%emt 0:01:00]} Kh7 {[%emt 0:01:19]} 27. Rg3 $15 {[%emt 0:04:30]} Kh6 {[%emt 0:02:12]} 28. Qe3+ {[%emt 0:01:30]} Kh7 {[%emt 0:00:16]} 29. Qf3 {[%emt 0:03:30]} Kh6 {[%emt 0:00:12]} 30. Qe3+ {[%emt 0:01:30]} Kh7 {[%emt 0:00:06]} 31. Qf3 {[%emt 0:06:30]} 1/2-1/2